bitfinex/quotes_SOLUSD_20250728
["timestamp","ask_amount","ask_price","bid_price","bid_amount"]
[1753719571843,0.03,187.34,187.33,10.54696646]
[1753719572251,0.72,187.34,187.31,27.33165043]
[1753719572567,0.72,187.34,187.31,16.78468397]
[1753719573101,1.35727165,187.33,187.29,26.0]
[1753719573278,1.35727165,187.33,187.3,27.33165043]
[1753719573449,0.03,187.34,187.32,10.54696646]
[1753719573642,0.03,187.34,187.33,27.33165043]
[1753719574069,0.03,187.34,187.33,27.99165043]
[1753719574271,0.03,187.34,187.33,33.3298237]
[1753719574550,0.03,187.34,187.33,32.6698237]
[1753719575193,0.03,187.34,187.32,10.54696646]
[1753719575484,0.03,187.34,187.32,15.88532264]
[1753719575875,0.03,187.34,187.33,10.54696646]
[1753719576482,0.03,187.34,187.33,15.88513973]
[1753719576981,0.03,187.34,187.33,10.54696646]
[1753719577185,0.03,187.34,187.32,32.67003918]
[1753719580697,0.69,187.33,187.3,16.78468397]
[1753719580905,0.69,187.33,187.3,22.12370118]
[1753719581198,0.69723604,187.34,187.3,32.67066764]
[1753719581381,1.38723604,187.34,187.3,27.33165043]
[1753719581801,1.38723604,187.34,187.3,32.67062232]
[1753719582290,0.69723604,187.34,187.3,33.33062232]
[1753719582993,0.03,187.34,187.3,27.99165043]
[1753719583203,0.03,187.34,187.3,16.78468397]
[1753719583204,0.69,187.33,187.3,16.78468397]
[1753719583390,0.69,187.33,187.29,26.0]
[1753719583391,10.54696646,187.31,187.25,10.54696646]
[1753719583571,10.54696646,187.31,187.22,6.0903]
[1753719583572,10.54696646,187.27,187.22,5.34125073]
[1753719583774,11.90448755,187.26,187.22,5.34125073]
[1753719584010,10.54696646,187.29,187.23,27.33165043]
[1753719584218,10.54696646,187.29,187.24,10.54696646]
[1753719584510,0.6674498,187.28,187.24,0.66]
[1753719584874,10.54696646,187.26,187.2,10.54696646]
[1753719585084,10.54696646,187.23,187.19,16.78468397]
[1753719585317,1.35766371,187.22,187.18,0.06]
[1753719585613,1.35766371,187.22,187.18,11.26696646]
[1753719585614,0.66766371,187.22,187.18,11.26696646]
[1753719586109,11.2145232,187.25,187.2,10.54696646]
[1753719586286,0.66755674,187.25,187.21,17.44468397]
[1753719586474,0.66748544,187.27,187.23,27.33165043]
[1753719586675,10.54696646,187.28,187.23,27.99165043]
[1753719586989,0.66748544,187.27,187.23,33.33249499]
[1753719587372,0.66741417,187.29,187.25,27.33165043]
[1753719587595,0.66727165,187.33,187.28,27.33165043]
[1753719587776,0.66727165,187.33,187.3,10.54696646]
[1753719587976,0.66727165,187.33,187.28,17.44468397]
[1753719588210,1.35727165,187.33,187.29,10.54696646]
[1753719588517,0.66727165,187.33,187.29,11.20696646]
[1753719588687,0.03,187.34,187.31,10.54696646]
[1753719588892,1.35727165,187.33,187.28,10.54696646]
[1753719590001,1.35727165,187.33,187.28,11.20696646]
[1753719590194,1.35727165,187.33,187.28,10.54696646]
[1753719590512,10.54696646,187.29,187.24,27.33165043]
[1753719590712,11.23696646,187.29,187.24,27.33165043]
[1753719590914,11.21441626,187.28,187.23,10.60696646]
[1753719591091,11.23696646,187.27,187.23,16.84468397]
[1753719591803,10.54696646,187.27,187.23,16.84468397]
[1753719592109,10.54696646,187.27,187.23,22.1856686]
[1753719592605,11.23696646,187.27,187.23,16.84468397]
[1753719592776,10.54696646,187.24,187.23,0.06]
[1753719593305,11.23696646,187.24,187.23,0.06]
[1753719593900,0.66748544,187.27,187.23,0.72]
[1753719594102,11.2144519,187.27,187.23,0.72]
[1753719594287,0.66748544,187.27,187.23,6.06098275]
[1753719594486,0.66748544,187.27,187.24,0.66]
[1753719594878,10.54696646,187.27,187.23,16.84468397]
[1753719595112,0.66752109,187.26,187.23,16.84468397]
[1753719595496,10.54696646,187.25,187.23,0.06]
[1753719596284,11.21448755,187.26,187.23,0.06]
[1753719596615,11.90448755,187.26,187.23,0.06]
[1753719596811,0.66752109,187.26,187.23,0.72]
[1753719596993,10.54696646,187.27,187.23,0.06]
[1753719597318,11.90448755,187.26,187.23,0.06]
[1753719597616,10.54696646,187.24,187.23,0.06]
[1753719597779,11.21455885,187.24,187.23,0.06]
[1753719597986,11.90455885,187.24,187.23,0.06]
[1753719599041,17.245298,187.24,187.23,0.06]
[1753719600630,0.66759239,187.24,187.23,0.06]
[1753719600836,49.5945232,187.25,187.23,0.06]
[1753719601134,10.54696646,187.24,187.23,0.06]
[1753719601717,11.24696646,187.24,187.23,0.06]
[1753719603106,10.54696646,187.24,187.23,0.06]
[1753719603309,49.5945232,187.25,187.23,0.06]
[1753719603531,10.54696646,187.24,187.23,0.06]
[1753719604539,15.88770561,187.24,187.23,0.06]
[1753719604702,16.58770561,187.24,187.23,0.06]
[1753719604899,16.58770561,187.24,187.19,0.06]
[1753719605112,10.54696646,187.2,187.19,0.06]
[1753719605306,11.2147015,187.2,187.19,0.06]
[1753719605514,49.5947015,187.2,187.19,0.06]
[1753719605706,50.2947015,187.2,187.19,0.06]
[1753719606718,55.63658184,187.2,187.19,0.06]
[1753719607733,55.92090498,187.2,187.19,0.06]
[1753719608242,0.28432314,187.17,187.15,0.06]
[1753719608454,0.28432314,187.17,187.15,1e-08]
[1753719608455,50.29484421,187.16,187.15,1e-08]
[1753719608617,33.14451617,187.14,187.13,1e-08]
[1753719608811,26.0,187.11,187.1,1e-08]
[1753719609012,103.21099625,187.11,187.1,1e-08]
[1753719609213,103.91099625,187.11,187.1,1e-08]
[1753719609407,86.45825606,187.11,187.1,1e-08]
[1753719609738,48.46198914,187.11,187.1,1e-08]
[1753719609912,76.29502268,187.11,187.1,1e-08]
[1753719610111,87.12631228,187.11,187.1,1e-08]
[1753719610815,92.47076206,187.11,187.1,1e-08]
[1753719611823,43.25947246,187.11,187.1,1e-08]
[1753719612033,81.65947246,187.11,187.1,1e-08]
[1753719612216,80.95947246,187.11,187.1,1e-08]
[1753719612543,50.31502268,187.11,187.1,1e-08]
[1753719612713,65.5383827,187.11,187.1,1e-08]
[1753719612912,66.20643892,187.11,187.02,16.78468397]
[1753719613114,10.54696646,187.03,186.98,26.0]
[1753719613310,49.61534417,187.02,186.99,16.78468397]
[1753719613616,38.4,187.05,187.02,16.78468397]
[1753719613931,38.4,187.11,187.04,10.54696646]
[1753719614125,0.66809192,187.1,187.07,16.78468397]
[1753719614638,0.66809192,187.1,187.02,1.94546207]
[1753719614639,10.54696646,187.09,187.04,16.78468397]
[1753719614821,0.66816335,187.08,187.04,17.45468397]
[1753719615026,10.54696646,187.07,187.04,17.45468397]
[1753719615208,0.66823479,187.06,187.03,16.78468397]
[1753719615725,0.66823479,187.06,187.03,27.33165043]
[1753719615927,0.66823479,187.06,187.03,11.21696646]
[1753719616111,0.66823479,187.06,187.02,10.54696646]
[1753719616319,0.66823479,187.06,187.01,16.78468397]
[1753719616320,38.4,187.07,187.06,16.78468397]
[1753719616532,38.4,187.1,187.06,11.21696646]
[1753719616724,38.4,187.1,187.08,10.54696646]
[1753719616958,38.4,187.1,187.08,5.34519191]
[1753719617226,0.66784206,187.17,187.1,42.78468397]
[1753719617414,10.54696646,187.23,187.16,10.54696646]
[1753719617614,0.66766371,187.22,187.2,10.54696646]
[1753719617824,38.4,187.23,187.21,11.21696646]
[1753719618039,0.66766371,187.22,187.19,16.78468397]
[1753719618239,38.4,187.23,187.21,10.54696646]
[1753719618447,38.4,187.23,187.2,10.54696646]
[1753719618653,38.4,187.23,187.16,26.67]
[1753719618654,0.66766371,187.22,187.16,26.67]
[1753719618946,0.66766371,187.22,187.18,16.78468397]
[1753719618947,16.55595791,187.22,187.18,16.78468397]
[1753719619130,17.25595791,187.22,187.18,16.78468397]
[1753719619331,17.25595791,187.22,187.17,16.78468397]
[1753719619546,0.66766371,187.22,187.18,10.54696646]
[1753719619768,17.25596355,187.22,187.16,10.54696646]
[1753719620049,10.54696646,187.21,187.15,27.33165043]
[1753719620228,10.54696646,187.21,187.15,32.67483601]
[1753719620229,39.06773504,187.2,187.15,32.67483601]
[1753719620648,39.06773504,187.2,187.16,10.54696646]
[1753719621275,39.06773504,187.2,187.15,27.33165043]
[1753719621439,10.54696646,187.16,187.11,11.21696646]
[1753719621636,0.66791343,187.15,187.12,16.78468397]
[1753719621949,11.21487989,187.15,187.1,10.54696646]
[1753719622148,10.54696646,187.14,187.09,16.78468397]
[1753719622457,38.4,187.13,187.09,27.33165043]
[1753719622756,38.4,187.13,187.1,0.67]
[1753719622943,38.4,187.13,187.08,10.54696646]
[1753719622944,0.66802052,187.12,187.08,10.54696646]
[1753719623149,11.21498698,187.12,187.08,16.78468397]
[1753719623347,10.54696646,187.09,187.05,0.06]
[1753719623536,38.4,187.1,187.05,15.95311456]
[1753719623738,39.06809192,187.1,187.07,16.78468397]
[1753719623938,39.06809192,187.1,187.08,0.06]
[1753719624339,49.61505838,187.1,187.08,0.06]
[1753719624680,11.24696646,187.09,187.08,0.06]
[1753719625353,20.4748823,187.09,187.08,0.06]
[1753719625926,15.12986119,187.09,187.08,0.06]
[1753719626153,53.52986119,187.09,187.08,0.06]
[1753719626338,54.19798882,187.09,187.08,0.06]
[1753719626538,53.49798882,187.09,187.08,0.06]
[1753719626760,49.61509409,187.09,187.08,0.06]
[1753719627144,0.66812763,187.09,187.08,0.06]
[1753719627455,38.4,187.09,187.08,0.06]
[1753719627673,39.06805622,187.11,187.08,0.06]
[1753719627878,39.06805622,187.11,187.08,11.27696646]
[1753719628047,38.4,187.11,187.09,11.21696646]
[1753719628247,16.59049004,187.15,187.09,11.21696646]
[1753719628248,38.4,187.13,187.09,11.21696646]
[1753719628455,0.66802052,187.12,187.1,10.54696646]
[1753719628751,0.66802052,187.12,187.09,11.21696646]
[1753719628941,38.4,187.13,187.09,11.21696646]
[1753719629143,38.4,187.13,187.11,10.54696646]
[1753719629867,38.4,187.13,187.1,16.56163858]
[1753719630364,38.4,187.13,187.1,15.89163858]
[1753719630737,38.4,187.13,187.08,0.06]
[1753719630738,38.4,187.13,187.08,10.60696646]
[1753719630963,0.66802052,187.12,187.08,0.06]
[1753719631170,0.66802052,187.12,187.09,10.54696646]
[1753719631887,0.66802052,187.12,187.08,0.06]
[1753719631888,1.37802052,187.12,187.08,0.06]
[1753719632173,10.54696646,187.1,187.08,0.06]
[1753719632368,0.66812763,187.09,187.08,0.06]
[1753719632741,0.66794912,187.14,187.08,11.32696646]
[1753719633076,38.4,187.13,187.09,10.54696646]
[1753719633246,0.66802052,187.12,187.09,10.54696646]
[1753719633977,10.54696646,187.1,187.08,0.06]
[1753719634176,1.37812763,187.09,187.08,0.06]
[1753719634476,11.92487989,187.15,187.08,28.11165043]
[1753719634677,11.92487989,187.15,187.1,10.54696646]
[1753719634678,42.29854608,187.14,187.1,10.54696646]
[1753719634883,42.29854608,187.14,187.11,10.54696646]
[1753719634884,0.66798482,187.13,187.11,10.54696646]
[1753719635171,38.4,187.14,187.12,10.54696646]
[1753719635536,38.4,187.14,187.12,15.89103906]
[1753719635776,0.66777071,187.19,187.14,16.78468397]
[1753719635981,38.4,187.17,187.15,10.54696646]
[1753719636195,38.4,187.17,187.16,10.54696646]
[1753719637281,0.66769937,187.21,187.16,11.26696646]
[1753719637585,0.71,187.27,187.15,16.78468397]
[1753719637586,38.4,187.23,187.2,15.88881983]
[1753719637783,0.66759239,187.24,187.22,10.54696646]
[1753719637977,38.4,187.26,187.22,10.54696646]
[1753719638301,5.28887612,187.25,187.16,0.72]
[1753719638505,11.9245232,187.25,187.2,10.54696646]
[1753719639003,0.71,187.24,187.2,10.54696646]
[1753719639207,0.66762805,187.23,187.2,10.54696646]
[1753719639907,11.25696646,187.22,187.17,27.33165043]
[1753719640122,0.66769937,187.21,187.18,10.54696646]
[1753719640285,0.66762805,187.23,187.2,10.54696646]
[1753719640486,0.66762805,187.23,187.21,10.54696646]
[1753719640809,39.06759239,187.24,187.19,17.50468397]
[1753719640989,39.06759239,187.24,187.22,10.54696646]
[1753719641185,0.71,187.23,187.17,32.06265944]
[1753719641409,0.66766371,187.22,187.18,16.78468397]
[1753719641584,0.66766371,187.22,187.19,10.54696646]
[1753719641789,1.37766371,187.22,187.19,10.54696646]
[1753719642097,0.66766371,187.22,187.19,10.54696646]
[1753719642408,0.66762805,187.23,187.19,10.54696646]
[1753719642720,1.37762805,187.23,187.19,10.54696646]
[1753719643012,39.77762805,187.23,187.19,10.54696646]
[1753719643210,39.06762805,187.23,187.2,10.54696646]
[1753719643606,39.77762805,187.23,187.19,10.54696646]
[1753719643796,39.77762805,187.23,187.18,5.34245111]
[1753719643998,39.06762805,187.23,187.2,10.54696646]
[1753719645312,39.77762805,187.23,187.2,10.54696646]
[1753719645527,39.06762805,187.23,187.18,5.34245111]
[1753719645738,39.06762805,187.23,187.2,10.54696646]
[1753719645906,6.03743422,187.27,187.21,0.72]
[1753719646215,6.03743422,187.27,187.2,16.78468397]
[1753719646216,1.37752109,187.26,187.2,22.12656092]
[1753719646403,39.07748544,187.27,187.25,10.54696646]
[1753719646591,38.41,187.27,187.26,10.54696646]
[1753719647098,0.03,187.27,187.26,27.33165043]
[1753719648412,1.40748544,187.27,187.22,16.78468397]
[1753719648612,0.69748544,187.27,187.23,10.54696646]
[1753719648795,39.09,187.26,187.23,10.54696646]
[1753719649001,1.37755674,187.25,187.22,10.54696646]
[1753719649298,1.37755674,187.25,187.21,16.78468397]
[1753719649299,11.9245232,187.25,187.21,16.78468397]
[1753719649500,0.71,187.24,187.19,15.88906836]
[1753719649712,0.66762805,187.23,187.2,16.78468397]
[1753719649920,1.37762805,187.23,187.2,16.78468397]
[1753719650319,1.37762805,187.23,187.2,22.12651887]
[1753719650524,0.66762805,187.23,187.2,27.33165043]
[1753719650706,0.66759239,187.24,187.2,16.78468397]
[1753719650931,1.37759239,187.24,187.2,16.78468397]
[1753719651131,0.71,187.23,187.2,16.78468397]
[1753719651326,0.66762805,187.23,187.2,16.78468397]
[1753719651922,0.66759239,187.24,187.2,16.78468397]
[1753719652348,0.66759239,187.24,187.21,10.54696646]
[1753719652525,38.38,187.26,187.23,10.54696646]
[1753719653352,0.03,187.27,187.25,10.54696646]
[1753719653650,0.03,187.27,187.26,10.54696646]
[1753719654436,0.03,187.27,187.25,17.50468397]
[1753719654437,0.03,187.27,187.25,27.33165043]
[1753719654651,0.03,187.27,187.25,32.67205802]
[1753719655320,0.03,187.27,187.26,10.54696646]
[1753719656053,0.03,187.27,187.26,27.33165043]
[1753719656443,0.03,187.27,187.26,32.67181917]
[1753719657048,0.03,187.27,187.26,27.33165043]
[1753719657555,0.03,187.27,187.26,65.95781917]
[1753719657853,0.03,187.3,187.29,27.33165043]
[1753719658059,0.03,187.3,187.26,38.62616874]
[1753719658060,0.03,187.3,187.27,27.33165043]
[1753719658238,0.74,187.3,187.27,16.78468397]
[1753719658441,0.71,187.29,187.21,6.7654]
[1753719658641,0.6674498,187.28,187.24,10.54696646]
[1753719658863,0.71,187.27,187.23,16.78468397]
[1753719659054,1.37752109,187.26,187.23,16.78468397]
[1753719659243,0.71,187.26,187.23,16.78468397]
[1753719659565,0.66748544,187.27,187.22,10.54696646]
[1753719659758,1.37748544,187.27,187.22,10.54696646]
[1753719660065,0.66748544,187.27,187.23,10.54696646]
[1753719660277,0.66748544,187.27,187.22,15.88810606]
[1753719660456,0.71,187.26,187.22,10.54696646]
[1753719660673,50.2845232,187.25,187.2,10.54696646]
[1753719660846,11.20696646,187.24,187.2,16.78468397]
[1753719661053,1.32762805,187.23,187.2,16.78468397]
[1753719661365,10.54696646,187.21,187.12,5.34415968]
[1753719661566,10.54696646,187.17,187.12,10.54696646]
[1753719661864,10.54696646,187.14,187.09,10.54696646]
[1753719662085,17.21882986,187.13,187.08,0.06]
[1753719662244,17.21882986,187.13,187.08,16.84468397]
[1753719662441,0.66798482,187.13,187.12,10.54696646]
[1753719662647,39.02784206,187.17,187.13,16.78468397]
[1753719662957,39.02784206,187.17,187.13,27.33165043]
[1753719663372,38.36,187.17,187.15,10.54696646]
[1753719663862,38.36,187.17,187.16,27.33165043]
[1753719664069,38.36,187.17,187.13,6.06381063]
[1753719664364,38.36,187.17,187.15,10.54696646]
[1753719664664,11.87484421,187.16,187.1,10.54696646]
[1753719664868,10.54696646,187.15,187.09,10.54696646]
[1753719665044,49.59491558,187.14,187.09,16.78468397]
[1753719665253,11.20696646,187.13,187.08,15.95226938]
[1753719665583,1.32802052,187.12,187.09,10.54696646]
[1753719665741,0.66802052,187.12,187.09,10.54696646]
[1753719666203,1.32802052,187.12,187.09,10.54696646]
[1753719666391,1.32802052,187.12,187.08,15.95226938]
[1753719668397,0.66,187.11,187.08,15.95226938]
[1753719668596,0.66798482,187.13,187.08,15.95226938]
[1753719668903,1.32798482,187.13,187.08,15.95226938]
[1753719669497,0.66,187.12,187.08,15.95226938]
[1753719669883,1.32805622,187.11,187.08,16.84468397]
[1753719670394,0.66,187.1,187.08,0.06]
[1753719670692,11.21502268,187.11,187.08,0.06]
[1753719670876,1.32805622,187.11,187.08,0.06]
[1753719671079,10.54696646,187.09,187.08,0.06]
[1753719671278,11.21509409,187.09,187.08,0.06]
[1753719671479,49.59509409,187.09,187.08,0.06]
[1753719671778,50.25509409,187.09,187.08,0.06]
[1753719672591,49.59509409,187.09,187.08,0.06]
[1753719673100,39.04812763,187.09,187.08,0.06]
[1753719673315,39.04809192,187.1,187.08,0.06]
[1753719673682,39.04809192,187.1,187.08,10.60696646]
[1753719673881,39.04809192,187.1,187.08,0.06]
[1753719675414,50.25505838,187.1,187.08,0.06]
[1753719675711,1.32809192,187.1,187.08,0.06]
[1753719676989,0.66809192,187.1,187.08,0.06]
[1753719677680,0.66,187.09,187.08,0.06]
[1753719678186,11.20696646,187.09,187.08,0.06]
[1753719679808,16.55198757,187.09,187.08,0.06]
[1753719685324,6.01285793,187.1,187.08,0.06]
[1753719685502,38.38,187.09,187.08,0.06]
[1753719685693,48.92696646,187.09,187.08,0.06]
[1753719685887,54.93198757,187.09,187.08,0.06]
[1753719686208,55.6001152,187.09,187.08,0.06]
[1753719686409,39.04812763,187.09,187.08,0.06]
[1753719686594,0.66802052,187.12,187.08,28.11165043]
[1753719686780,10.54696646,187.14,187.11,10.54696646]
[1753719686781,0.66794912,187.14,187.11,10.54696646]
[1753719686984,38.38,187.14,187.12,10.54696646]
[1753719687187,0.66798482,187.13,187.09,0.72]
[1753719687409,10.54696646,187.1,187.08,0.06]
[1753719687614,49.59509409,187.09,187.08,0.06]
[1753719687822,55.6001152,187.09,187.08,0.06]
[1753719689233,55.88443834,187.09,187.08,0.06]
[1753719690732,55.6001152,187.09,187.08,0.06]
[1753719692046,16.5601152,187.09,187.08,0.06]
[1753719692352,49.59509409,187.09,187.08,0.06]
[1753719692714,55.6001152,187.09,187.08,0.06]
[1753719692927,55.88443834,187.09,187.08,0.06]
[1753719693928,0.66812763,187.09,187.08,0.06]
[1753719694130,54.9401152,187.09,187.08,0.06]
[1753719694340,55.6001152,187.09,187.08,0.06]
[1753719695319,54.9401152,187.09,187.08,0.06]
[1753719695522,0.66812763,187.09,187.08,0.06]
[1753719695723,38.38,187.09,187.08,0.72]
[1753719696153,0.66794912,187.14,187.09,16.78468397]
[1753719696345,38.38,187.13,187.12,10.54696646]
[1753719696545,38.38,187.13,187.1,11.20696646]
[1753719696934,10.54696646,187.11,187.08,0.06]
[1753719697123,15.89198757,187.09,187.08,0.06]
[1753719697324,26.0,187.06,187.0,0.06]
[1753719697651,10.54696646,187.01,187.0,0.06]
[1753719697825,49.2112896,187.01,187.0,0.06]
[1753719698021,36.8312896,186.99,186.98,0.06]
[1753719698277,75.87977454,186.99,186.94,0.06]
[1753719698560,26.0,186.92,186.9,0.06]
[1753719698720,75.2112896,186.92,186.9,0.06]
[1753719699044,75.8712896,186.92,186.9,0.06]
[1753719699352,81.2211719,186.92,186.9,0.06]
[1753719699567,81.88990718,186.92,186.91,1e-08]
[1753719699727,92.43687364,186.92,186.9,0.06]
[1753719699921,21.09393292,186.91,186.9,0.06]
[1753719700249,24.71551673,186.91,186.9,1e-08]
[1753719700640,47.09393292,186.89,186.88,0.06]
[1753719700953,86.16277555,186.89,186.88,0.06]
[1753719701248,86.16277555,186.89,186.79,0.2]
[1753719701249,18.72859588,186.88,186.79,0.2]
[1753719701451,10.8312896,186.85,186.79,0.2]
[1753719701637,49.2312896,186.85,186.79,0.2]
[1753719701837,49.8912896,186.85,186.79,0.2]
[1753719702233,49.2312896,186.85,186.79,0.2]
[1753719702940,49.8912896,186.85,186.79,0.2]
[1753719703475,55.24317614,186.85,186.79,0.2]
[1753719704640,0.28432314,186.84,186.79,0.2]
[1753719704828,10.54696646,186.81,186.79,0.2]
[1753719705130,48.94696646,186.81,186.79,0.2]
[1753719705440,55.24432209,186.81,186.79,0.2]
[1753719705756,0.66912906,186.81,186.79,0.2]
[1753719705956,49.63609552,186.81,186.79,0.2]
[1753719706858,0.66912906,186.81,186.79,0.2]
[1753719707058,38.42,186.81,186.8,0.72]
[1753719707264,49.63609552,186.81,186.8,0.06]
[1753719707647,50.58041866,186.81,186.8,0.06]
[1753719707972,49.63609552,186.81,186.8,0.06]
[1753719708133,50.58041866,186.81,186.8,0.06]
[1753719709238,55.93345115,186.81,186.8,0.06]
[1753719709543,16.85345115,186.81,186.8,0.06]
[1753719709759,55.27345115,186.81,186.8,0.06]
[1753719710252,55.93345115,186.81,186.8,0.06]
[1753719710460,49.63609552,186.81,186.8,0.06]
[1753719710955,39.08912906,186.81,186.8,0.06]
[1753719711947,42.95952725,186.81,186.8,0.72]
[1753719712141,39.08912906,186.81,186.8,0.72]
[1753719712777,16.56719778,186.87,186.8,11.26696646]
[1753719713068,52.85515475,186.86,186.81,11.20696646]
[1753719713279,0.66898581,186.85,186.81,10.54696646]
[1753719713575,38.44,186.84,186.81,0.66]
[1753719713768,0.66905743,186.83,186.8,0.06]
[1753719714072,10.54696646,186.81,186.8,0.06]
[1753719714272,11.87609552,186.81,186.8,0.06]
[1753719714969,11.21609552,186.81,186.8,0.06]
[1753719715144,11.87609552,186.81,186.8,0.06]
[1753719715351,21.37749924,186.81,186.8,0.06]
[1753719716362,0.66912906,186.81,186.8,0.06]
[1753719716562,0.66898581,186.85,186.81,16.78468397]
[1753719716766,0.66873528,186.92,186.84,10.54696646]
[1753719717075,54.41713499,186.91,186.85,0.66]
[1753719717250,0.66880684,186.9,186.86,10.54696646]
[1753719717447,10.54696646,186.88,186.84,0.66]
[1753719717667,10.54696646,186.86,186.82,16.78468397]
[1753719717871,0.66898581,186.85,186.82,0.66]
[1753719718574,26.0,186.92,186.82,0.66]
[1753719718575,5.3470217,187.02,186.84,53.33165043]
[1753719718888,10.54696646,186.97,186.92,10.54696646]
[1753719719170,39.13903311,186.96,186.93,10.54696646]
[1753719719546,39.13903311,186.96,186.92,10.54696646]
[1753719719767,10.80599957,187.01,186.95,10.54696646]
[1753719719955,38.86,187.0,186.96,10.54696646]
[1753719720155,0.25903311,186.99,186.95,10.54696646]
[1753719720383,59.12696646,187.11,186.95,10.54696646]
[1753719720384,3.0496413,187.06,186.99,42.78468397]
[1753719720673,3.0496413,187.06,187.04,10.54696646]
[1753719720674,2.79060819,187.06,187.04,10.54696646]
[1753719720980,2.79060819,187.06,187.03,10.54696646]
[1753719721150,2.79060819,187.06,187.05,10.54696646]
[1753719721350,38.86,187.11,187.08,26.0]
[1753719721554,4.13225932,187.1,187.08,10.54696646]
[1753719721757,0.25903311,187.1,187.05,26.0]
[1753719721957,10.54696646,187.08,187.02,10.54696646]
[1753719722177,0.66,187.09,187.07,10.54696646]
[1753719722178,0.25903311,187.09,187.07,10.54696646]
[1753719722374,38.96,187.11,187.08,10.54696646]
[1753719722678,38.96,187.11,187.09,10.54696646]
[1753719722876,0.1,187.11,187.1,16.15743365]
[1753719723079,0.25903311,187.2,187.13,26.0]
[1753719723383,3.87527249,187.19,187.18,16.15743365]
[1753719723558,38.94,187.2,187.18,16.15743365]
[1753719723884,38.94,187.2,187.17,16.15743365]
[1753719724073,17.07646676,187.19,187.14,16.15743365]
[1753719724280,16.15743365,187.17,187.09,16.96468397]
[1753719724451,0.25903311,187.16,187.12,16.15743365]
[1753719724867,39.17903311,187.16,187.09,42.96468397]
[1753719725070,39.17903311,187.16,187.12,16.15743365]
[1753719725483,0.25903311,187.16,187.12,47.50158711]
[1753719725659,0.25903311,187.21,187.15,16.15743365]
[1753719725855,38.9,187.23,187.2,16.15743365]
[1753719726057,0.25903311,187.22,187.18,42.15743365]
[1753719726958,0.25903311,187.22,187.18,16.15743365]
[1753719726959,5.60062511,187.22,187.18,16.15743365]
[1753719727175,6.26062511,187.22,187.18,16.15743365]
[1753719727474,5.60062511,187.22,187.18,16.15743365]
[1753719727892,5.60062511,187.22,187.14,16.78468397]
[1753719728189,21.75805876,187.22,187.17,16.15743365]
[1753719728483,5.60062511,187.22,187.18,16.15743365]
[1753719728656,0.25903311,187.22,187.19,16.15743365]
[1753719728859,0.25903311,187.22,187.2,16.15743365]
[1753719729176,38.9,187.23,187.21,16.15743365]
[1753719729373,38.9,187.23,187.18,0.18]
[1753719729569,38.9,187.23,187.17,42.78468397]
[1753719729570,44.50015669,187.23,187.2,16.15743365]
[1753719730177,5.341595,187.21,187.17,16.15743365]
[1753719730490,5.341595,187.21,187.09,0.18]
[1753719730491,16.15743365,187.18,187.09,0.18]
[1753719730661,16.15743365,187.14,187.09,16.15743365]
[1753719730980,39.09903311,187.13,187.09,16.15743365]
[1753719731163,55.25646676,187.13,187.08,16.15743365]
[1753719731363,38.84,187.13,187.11,16.15743365]
[1753719731687,16.15743365,187.16,187.12,16.15743365]
[1753719731688,38.84,187.16,187.12,16.15743365]
[1753719731864,38.84,187.16,187.13,16.15743365]
[1753719732064,38.84,187.16,187.14,16.15743365]
[1753719732259,38.84,187.16,187.15,16.15743365]
[1753719732771,38.84,187.16,187.14,16.15743365]
[1753719732970,38.84,187.16,187.14,42.15743365]
[1753719733170,0.25903311,187.15,187.12,42.15743365]
[1753719733685,0.25903311,187.15,187.12,26.0]
[1753719733860,0.91903311,187.15,187.12,26.0]
[1753719734057,38.84,187.16,187.13,16.15743365]
[1753719734289,38.84,187.16,187.14,16.15743365]
[1753719735487,38.84,187.16,187.13,16.15743365]
[1753719735882,38.84,187.16,187.12,26.0]
[1753719736067,0.25903311,187.15,187.12,26.0]
[1753719736263,0.25903311,187.15,187.12,42.15743365]
[1753719736593,39.09903311,187.16,187.13,16.15743365]
[1753719736991,39.09903311,187.16,187.12,26.0]
[1753719736992,0.03,187.19,187.15,16.15743365]
[1753719737236,0.03,187.19,187.18,16.15743365]
[1753719737496,6.29128984,187.19,187.15,16.15743365]